[Event "Croatian 1A League 2022"]
[Site "Porec"]
[Date "2022.09.26"]
[Round "3.25"]
[White "Kaczur, Florian"]
[Black "Fedorchuk, Sergey A."]
[Result "1/2-1/2"]
[ECO "B40"]
[WhiteElo "2483"]
[BlackElo "2617"]
[Annotator "RC"]
[PlyCount "21"]
[EventDate "2022.09.24"]
[EventType "team-tourn"]
[EventCountry "CRO"]
[SourceTitle "playchess.com"]
[Source "ChessBase"]
[SourceQuality "1"]
[TimeControl "40/5400+30:1800+30"]

1. e4 {[%emt 0:00:03]} c5 {[%emt 0:03:08]} 2. Nf3 {[%emt 0:00:16]} e6 {[%emt 0:00:12]} 3. c4 {[%emt 0:01:22]} Nc6 {[%emt 0:05:32]} 4. Nc3 {[%emt 0:01:40]} Nge7 {[%emt 0:03:29]} 5. d4 {[%emt 0:07:43]} Nxd4 {[%emt 0:01:10]} 6. Nxd4 {[%emt 0:00:06]} cxd4 {[%emt 0:00:07]} 7. Qxd4 {[%emt 0:00:44]} Nc6 {[%emt 0:00:29]} 8. Qe3 {[%emt 0:04:01]} Be7 {[%emt 0:11:51]} 9. Be2 {[%emt 0:04:17]} O-O {[%emt 0:02:55]} 10. O-O {[%emt 0:01:11]} d6 {[%emt 0:05:23]} 11. b3 {[%emt 0:04:36]} 1/2-1/2

[Event "Croatian 1A League 2022"]
[Site "Porec"]
[Date "2022.09.26"]
[Round "3.26"]
[White "Bernadskiy, Vitaliy"]
[Black "Janzelj, Tim"]
[Result "1-0"]
[ECO "A86"]
[WhiteElo "2558"]
[BlackElo "2456"]
[Annotator "RC"]
[PlyCount "57"]
[EventDate "2022.09.24"]
[EventType "team-tourn"]
[EventCountry "CRO"]
[SourceTitle "playchess.com"]
[Source "ChessBase"]
[SourceQuality "1"]
[TimeControl "40/5400+30:1800+30"]

1. c4 {[%emt 0:01:05]} f5 {[%emt 0:00:16]} 2. Nc3 {[%emt 0:00:30]} Nf6 {[%emt 0:00:08]} 3. d4 {[%emt 0:01:54]} g6 {[%emt 0:00:31]} 4. g3 {[%emt 0:06:13]} Bg7 {[%emt 0:00:36]} 5. Bg2 {[%emt 0:00:06]} O-O {[%emt 0:00:30]} 6. Nh3 {[%emt 0:00:26]} e6 {[%emt 0:07:51]} 7. O-O {[%emt 0:00:59]} d6 {[%emt 0:00:19]} 8. b3 {[%emt 0:00:46]} Nc6 {[%emt 0:04:59]} 9. Bb2 {[%emt 0:00:35]} Ne7 {[%emt 0:06:21]} 10. Qc2 {[%emt 0:10:07]} c6 {[%emt 0:02:35]} 11. Rad1 {[%emt 0:04:56]} d5 {[%emt 0:00:48]} 12. Nf4 {[%emt 0:02:05]} g5 {[%emt 0:07:28]} 13. Nd3 {[%emt 0:00:17]} Bd7 {[%emt 0:03:35]} 14. Ba3 {[%emt 0:02:21]} Be8 {[%emt 0:02:03]} 15. Nc5 {[%emt 0:01:17]} Qc8 {[%emt 0:02:52]} 16. e4 {[%emt 0:00:16]} Bh5 {[%emt 0:30:52]} 17. Rde1 {[%emt 0:01:25]} fxe4 {[%emt 0:01:34]} 18. N5xe4 {[%emt 0:01:03]} dxe4 {[%emt 0:00:33]} 19. Bxe7 {[%emt 0:00:09]} Rf7 {[%emt 0:00:11]} 20. Bxf6 {[%emt 0:07:15]} Bxf6 {[%emt 0:00:07]} 21. Nxe4 {[%emt 0:00:04]} Qd8 {[%emt 0:00:33]} 22. Nxf6+ {[%emt 0:00:59]} Qxf6 {[%emt 0:00:02]} 23. Re5 {[%emt 0:00:08]} Rd8 {[%emt 0:00:51]} 24. Qe4 {[%emt 0:06:01]} Bg6 {[%emt 0:02:54]} 25. Qe3 {[%emt 0:00:24]} Bf5 {[%emt 0:01:03]} 26. d5 {[%emt 0:03:07]} exd5 {[%emt 0:00:13]} 27. cxd5 {[%emt 0:00:06]} Rd6 {[%emt 0:09:58]} 28. Re1 {[%emt 0:00:48]} h6 {[%emt 0:02:13]} 29. Qxa7 {[%emt 0:00:34]} 1-0

[Event "Croatian 1A League 2022"]
[Site "Porec"]
[Date "2022.09.26"]
[Round "3.27"]
[White "Ivekovic, Bozidar"]
[Black "Lalic, Bogdan"]
[Result "1/2-1/2"]
[ECO "C48"]
[WhiteElo "2407"]
[BlackElo "2393"]
[Annotator "RC"]
[PlyCount "24"]
[EventDate "2022.09.24"]
[EventType "team-tourn"]
[EventCountry "CRO"]
[SourceTitle "playchess.com"]
[Source "ChessBase"]
[SourceQuality "1"]
[TimeControl "40/5400+30:1800+30"]

1. e4 {[%emt 0:00:04]} e5 {[%emt 0:03:01]} 2. Nf3 {[%emt 0:00:09]} Nf6 {[%emt 0:00:07]} 3. Nc3 {[%emt 0:00:52]} Nc6 {[%emt 0:00:11]} 4. Bb5 {[%emt 0:01:45]} Nd4 {[%emt 0:00:31]} 5. Bc4 {[%emt 0:00:15]} Bc5 {[%emt 0:02:37]} 6. d3 {[%emt 0:00:05]} d6 {[%emt 0:00:55]} 7. h3 {[%emt 0:03:16]} c6 {[%emt 0:02:52]} 8. Nxd4 {[%emt 0:07:26]} Bxd4 {[%emt 0:00:07]} 9. O-O {[%emt 0:00:05]} Be6 {[%emt 0:02:05]} 10. Ne2 {[%emt 0:07:12]} Bb6 {[%emt 0:00:45]} 11. Bxe6 {[%emt 0:07:23]} fxe6 {[%emt 0:00:09]} 12. Ng3 {[%emt 0:00:01]} O-O {[%emt 0:01:19]} 1/2-1/2

[Event "Croatian 1A League 2022"]
[Site "Porec"]
[Date "2022.09.26"]
[Round "3.28"]
[White "Zaja, Ivan"]
[Black "Ostovic, Matija"]
[Result "1-0"]
[ECO "D27"]
[WhiteElo "2417"]
[BlackElo "2386"]
[Annotator "RC"]
[PlyCount "91"]
[EventDate "2022.09.24"]
[EventType "team-tourn"]
[EventCountry "CRO"]
[SourceTitle "playchess.com"]
[Source "ChessBase"]
[SourceQuality "1"]
[TimeControl "40/5400+30:1800+30"]

1. d4 {[%emt 0:00:34]} d5 {[%emt 0:00:07]} 2. c4 {[%emt 0:00:53]} dxc4 {[%emt 0:00:31]} 3. e3 {[%emt 0:00:14]} Nf6 {[%emt 0:00:29]} 4. Bxc4 {[%emt 0:00:40]} e6 {[%emt 0:00:22]} 5. Nf3 {[%emt 0:02:03]} a6 {[%emt 0:01:50]} 6. a4 {[%emt 0:03:35]} c5 {[%emt 0:01:28]} 7. O-O {[%emt 0:02:10]} cxd4 {[%emt 0:02:21]} 8. exd4 {[%emt 0:00:41]} Be7 {[%emt 0:00:14]} 9. Qe2 {[%emt 0:03:11]} O-O {[%emt 0:00:38]} 10. Nc3 {[%emt 0:01:23]} Nbd7 {[%emt 0:09:27]} 11. Bg5 {[%emt 0:11:40]} Nb6 {[%emt 0:02:19]} 12. Bb3 {[%emt 0:00:50]} Nbd5 {[%emt 0:02:45]} 13. Ne5 {[%emt 0:02:00]} h6 {[%emt 0:16:03]} 14. Bh4 {[%emt 0:07:54]} Nxc3 {[%emt 0:03:00]} 15. bxc3 {[%emt 0:00:28]} Nd5 {[%emt 0:01:01]} 16. Bxe7 {[%emt 0:07:01]} Nxe7 {[%emt 0:00:06]} 17. Rfd1 {[%emt 0:05:39]} Qc7 {[%emt 0:08:05]} 18. c4 {[%emt 0:11:13]} Nc6 {[%emt 0:03:21]} 19. Bc2 {[%emt 0:07:34]} Rd8 {[%emt 0:08:25]} 20. Qd3 {[%emt 0:03:44]} g6 {[%emt 0:00:49]} 21. Qe3 {[%emt 0:01:57]} Nxe5 {[%emt 0:04:54]} 22. dxe5 {[%emt 0:00:10]} Bd7 {[%emt 0:00:43]} 23. Rd6 {[%emt 0:04:44]} Qxc4 {[%emt 0:05:14]} 24. Bb3 {[%emt 0:03:46]} Qh4 {[%emt 0:05:43]} 25. Rd4 {[%emt 0:00:39]} Qe7 {[%emt 0:00:14]} 26. Qxh6 {[%emt 0:01:10]} Qf8 {[%emt 0:00:08]} 27. Qg5 {[%emt 0:04:16]} Bc6 {[%emt 0:01:27]} 28. Rf4 {[%emt 0:00:42]} Qg7 {[%emt 0:01:58]} 29. Rf6 {[%emt 0:01:49]} Be8 {[%emt 0:03:49]} 30. Qe3 {[%emt 0:04:55]} Rac8 {[%emt 0:01:10]} 31. Rc1 {[%emt 0:01:19]} Rxc1+ {[%emt 0:00:43]} 32. Qxc1 {[%emt 0:00:01]} Bc6 {[%emt 0:00:59]} 33. h4 {[%emt 0:01:21]} Rd7 {[%emt 0:11:33]} 34. Qg5 {[%emt 0:01:38]} Kh7 {[%emt 0:00:16]} 35. Qf4 {[%emt 0:01:04]} Kg8 {[%emt 0:01:33]} 36. Kh2 {[%emt 0:01:47]} Bd5 {[%emt 0:03:28]} 37. Bc2 {[%emt 0:01:24]} Rc7 {[%emt 0:00:07]} 38. Bd3 {[%emt 0:00:42]} Rd7 {[%emt 0:00:50]} 39. f3 {[%emt 0:01:51]} Bc6 {[%emt 0:00:18]} 40. Bc2 {[%emt 0:00:37]} Rc7 {[%emt 0:01:28]} 41. Bb3 {[%emt 0:30:36]} Be8 {[%emt 0:05:57]} 42. a5 {[%emt 0:00:00]} Kh7 {[%emt 0:00:26]} 43. g4 {[%emt 0:00:00]} Rc3 {[%emt 0:00:45]} 44. Ba4 {[%emt 0:00:00]} g5 {[%emt 0:11:24]} 45. hxg5 {[%emt 0:00:00]} Kg8 {[%emt 0:01:27]} 46. Bxe8 {[%emt 0:00:00]} 1-0

[Event "Croatian 1A League 2022"]
[Site "Porec"]
[Date "2022.09.26"]
[Round "3.30"]
[White "Loncar, Robert"]
[Black "Zovko, Mario"]
[Result "1/2-1/2"]
[ECO "B01"]
[WhiteElo "2367"]
[BlackElo "2306"]
[Annotator "RC"]
[PlyCount "25"]
[EventDate "2022.09.24"]
[EventType "team-tourn"]
[EventCountry "CRO"]
[SourceTitle "playchess.com"]
[Source "ChessBase"]
[SourceQuality "1"]
[TimeControl "40/5400+30:1800+30"]

1. e4 {[%emt 0:00:30]} d5 {[%emt 0:00:30]} 2. exd5 {[%emt 0:00:30]} Qxd5 {[%emt 0:00:30]} 3. Nf3 {[%emt 0:00:30]} Nf6 {[%emt 0:00:08]} 4. c4 {[%emt 0:00:00]} Qe4+ {[%emt 0:00:09]} 5. Be2 {[%emt 0:00:00]} c6 {[%emt 0:00:37]} 6. Nc3 {[%emt 0:00:00]} Qf4 {[%emt 0:00:05]} 7. d4 {[%emt 0:00:03]} Qc7 {[%emt 0:00:02]} 8. h3 {[%emt 0:00:10]} Bf5 {[%emt 0:00:08]} 9. Be3 {[%emt 0:00:07]} e6 {[%emt 0:00:07]} 10. O-O {[%emt 0:00:08]} Bd6 {[%emt 0:00:04]} 11. Qd2 {[%emt 0:00:07]} Nbd7 {[%emt 0:00:45]} 12. Rfe1 {[%emt 0:00:29]} O-O {[%emt 0:00:07]} 13. Rad1 {[%emt 0:00:04]} 1/2-1/2

[Event "Croatian 1A League 2022"]
[Site "Porec"]
[Date "2022.09.27"]
[Round "4.1"]
[White "Saric, Ivan"]
[Black "Fedorchuk, Sergey A."]
[Result "1/2-1/2"]
[ECO "B54"]
[WhiteElo "2668"]
[BlackElo "2617"]
[Annotator "TA"]
[PlyCount "81"]
[EventDate "2022.09.24"]
[EventType "team-tourn"]
[EventCountry "CRO"]
[SourceTitle "playchess.com"]
[Source "ChessBase"]
[SourceQuality "1"]
[TimeControl "40/5400+30:1800+30"]

{[%evp 11,81,32,30,30,36,35,40,35,36,32,47,43,76,76,76,80,61,70,54,65,84,52,36,37,49,1,19,9,18,15,8,0,0,-4,0,0,0,-33,0,0,0,0,12,19,18,5,8,8,8,8,8,8,9,3,4,0,22,8,24,24,40,0,0,0,0,0,0,-16,-16,-16,-16,-24]} 1. e4 {[%emt 0:00:02]} c5 {[%emt 0:03:28]} 2. Nf3 {[%emt 0:00:04]} e6 {[%emt 0:00:10]} 3. d4 {[%emt 0:00:03]} cxd4 {[%emt 0:00:12]} 4. Nxd4 {[%emt 0:00:02]} Nc6 {[%emt 0:00:33]} 5. Nc3 {[%emt 0:00:05]} a6 {[%emt 0:00:16]} 6. Be2 {[%emt 0:01:27]} d6 {[%emt 0:05:19]} 7. Nxc6 {[%emt 0:04:37] B54: Sicilian: 2...d6 3 d4 cxd4 4 Nxd4, Unusual Lines .} bxc6 {[%emt 0:00:09]} 8. Qd3 {[%emt 0:00:21]} Be7 {[%emt 0:06:09]} 9. Qg3 {[%emt 0:07:30] White is slightly better.} Nf6 {[%emt 0:03:12] [#]} 10. b3 $146 {[%emt 0:04:25]} ({Of course not} 10. Qxg7 Rg8 11. Qh6 Rxg2 $15) ({Predecessor:} 10. O-O O-O 11. b3 Bb7 12. Bb2 d5 13. Rad1 Qb8 14. e5 Nd7 15. Ne4 a5 16. f4 {0-1 (35) David,A (2525)-Movsesian,S (2642) Dresden 2007}) 10... Qa5 {[%emt 0:15:53] [#] ...Nxe4 is the strong threat.} 11. Bd2 {[%emt 0:04:57]} Qc5 {[%emt 0:03:56]} 12. O-O {[%emt 0:09:18]} ({Much worse is} 12. Qxg7 $6 Rg8 13. Qh6 (13. b4 $2 Qd4 $19) 13... Rxg2 $15) 12... O-O {[%emt 0:02:04]} 13. Bh6 {[%emt 0:01:47][%csl Gh6][%cal Rg3g7]} Ne8 {[%emt 0:07:25]} 14. Na4 {[%emt 0:00:41]} Qa7 {[%emt 0:09:42]} 15. Rad1 {[%emt 0:03:08]} c5 {[%emt 0:02:24]} 16. Bg5 {[%emt 0:06:46] White has more active pieces.} Bxg5 {[%emt 0:00:26]} 17. Qxg5 {[%emt 0:00:01]} Bd7 {[%emt 0:00:07]} 18. Qe7 {[%emt 0:05:19]} (18. Nc3 $14) 18... Bxa4 $11 {[%emt 0:12:43]} 19. Qxa7 {[%emt 0:00:25]} Rxa7 {[%emt 0:00:04]} 20. bxa4 {[%emt 0:00:03]} Nf6 {[%emt 0:00:14]} 21. Bf3 {[%emt 0:22:35]} Rd8 {[%emt 0:00:53]} 22. Rb1 {[%emt 0:03:11]} Kf8 {[%emt 0:02:28]} 23. Rfd1 {[%emt 0:00:43]} Ke7 {[%emt 0:00:24]} 24. Rb6 {[%emt 0:01:50]} d5 {[%emt 0:05:26]} (24... g5 $5 {[%cal Rg5g4]}) 25. exd5 {[%emt 0:00:38]} Nxd5 {[%emt 0:00:08]} 26. Bxd5 {[%emt 0:00:26] [#] aiming for Bf3.} Rxd5 {[%emt 0:02:52]} 27. Rxd5 {[%emt 0:00:12]} exd5 {[%emt 0:00:04][%mdl 4096] Endgame KR-KR} 28. a5 {[%emt 0:03:18]} Kd7 {[%emt 0:01:02]} 29. Kf1 {[%emt 0:00:20]} Rc7 {[%emt 0:00:25]} 30. Rxa6 {[%emt 0:01:54]} Rb7 $1 {[%emt 0:10:15]} 31. Ke2 {[%emt 0:06:51]} Rb2 {[%emt 0:00:29][%csl LRa2,LRc2]} 32. Kd2 {[%emt 0:01:23]} Rxa2 {[%emt 0:00:05]} 33. Ra7+ {[%emt 0:01:04]} Ke6 {[%emt 0:00:48]} 34. a6 {[%emt 0:01:30]} h5 {[%emt 0:03:18]} 35. Ra8 {[%emt 0:01:19]} g6 {[%emt 0:04:57]} 36. h4 {[%emt 0:01:01]} Ke5 {[%emt 0:00:00] The position is equal.} 37. Ra7 {[%emt 0:03:54]} Kd4 {[%emt 0:00:00]} 38. Rxf7 {[%emt 0:03:20] Hoping for a7.} Rxa6 {[%emt 0:00:03]} 39. g3 {[%emt 0:01:02]} Kc4 {[%emt 0:00:39]} 40. Rf4+ {[%emt 0:00:00]} d4 {[%emt 0:00:00]} 41. Rf7 {[%emt 0:02:57] Weighted Error Value: White=0.07 (flawless) /Black=0.05 (flawless)} 1/2-1/2

[Event "Croatian 1A League 2022"]
[Site "Porec"]
[Date "2022.09.27"]
[Round "4.2"]
[White "Bernadskiy, Vitaliy"]
[Black "Banusz, Tamas"]
[Result "1/2-1/2"]
[ECO "D35"]
[WhiteElo "2558"]
[BlackElo "2622"]
[Annotator "TA"]
[PlyCount "117"]
[EventDate "2022.09.24"]
[EventType "team-tourn"]
[EventCountry "CRO"]
[SourceTitle "playchess.com"]
[Source "ChessBase"]
[SourceQuality "1"]
[TimeControl "40/5400+30:1800+30"]

{[%evp 18,117,27,23,26,22,32,18,20,24,27,20,13,13,13,13,13,13,13,13,14,16,22,22,22,22,39,39,36,25,25,34,37,24,29,8,25,8,27,7,23,2,24,24,31,18,31,31,31,0,31,31,31,23,23,23,31,30,53,46,53,53,53,53,53,53,53,27,53,53,53,53,53,53,53,53,53,20,53,53,53,53,53,50,50,14,22,0,14,14,14,0,0,0,0,-36,0,-29,0,-29,0,0]} 1. d4 {[%emt 0:00:03]} d5 {[%emt 0:00:24]} 2. c4 {[%emt 0:00:06]} e6 {[%emt 0:00:05]} 3. Nc3 {[%emt 0:00:20]} Nf6 {[%emt 0:00:06]} 4. cxd5 {[%emt 0:01:43]} exd5 {[%emt 0:02:47]} 5. Bg5 {[%emt 0:00:14]} c6 {[%emt 0:00:22]} 6. e3 {[%emt 0:00:33]} Bf5 {[%emt 0:00:21]} 7. Qf3 {[%emt 0:02:36]} Bg6 {[%emt 0:00:14]} 8. Bxf6 {[%emt 0:01:14]} Qxf6 {[%emt 0:00:06]} 9. Qxf6 {[%emt 0:00:05]} gxf6 {[%emt 0:00:05]} 10. h4 {[%emt 0:00:24][%cal Bh2h4,Bh4h5][%mdl 32]} Nd7 {[%emt 0:04:22][%cal Bb8d7,Bd7b6,Bb6c4][%mdl 32] D35: Queen's Gambit Declined: Exchange Variation.} 11. h5 {[%emt 0:03:02]} Bf5 {[%emt 0:00:05]} 12. Nf3 {[%emt 0:00:04]} Nb6 {[%emt 0:05:49]} 13. Nh4 {[%emt 0:00:52]} Be6 {[%emt 0:00:33]} 14. f3 {[%emt 0:03:41] [#]} f5 $146 {[%emt 0:10:23]} ({Predecessor:} 14... Rc8 15. Bd3 c5 16. Ne2 Nc4 17. Bxc4 dxc4 18. Kf2 Rg8 19. Rhd1 Rg5 20. g4 Rd8 {0-1 (42) Santo,M (2071)-Wimmer,J (2095) LSS email 2010}) 15. Kf2 {[%emt 0:03:28]} Nc4 {[%emt 0:04:53]} 16. b3 {[%emt 0:04:19]} Nd6 {[%emt 0:00:05]} 17. Bd3 {[%emt 0:00:33]} Bh6 {[%emt 0:05:28]} 18. g3 {[%emt 0:05:56]} Ke7 {[%emt 0:10:40]} 19. Rac1 {[%emt 0:01:21]} Rhg8 {[%emt 0:05:04]} 20. Ng2 {[%emt 0:00:34]} Kf6 {[%emt 0:01:25]} 21. Na4 {[%emt 0:01:50]} Bf8 {[%emt 0:06:51]} 22. Nf4 {[%emt 0:00:58]} Bh6 {[%emt 0:11:29]} 23. Rc2 {[%emt 0:07:05]} Rge8 {[%emt 0:00:51]} 24. Nc5 {[%emt 0:05:21]} Re7 {[%emt 0:01:18]} 25. Re1 {[%emt 0:02:35]} Bc8 {[%emt 0:04:17]} 26. Bf1 {[%emt 0:02:21]} Kg7 {[%emt 0:03:38]} 27. Rc3 {[%emt 0:05:14]} Bd7 {[%emt 0:03:09]} 28. Rb1 {[%emt 0:04:32]} Be8 {[%emt 0:00:52]} 29. Bd3 {[%emt 0:03:13]} Bg5 {[%emt 0:01:28]} 30. Rh1 {[%emt 0:01:56]} h6 {[%emt 0:01:53]} 31. Rb1 {[%emt 0:00:33]} Kf8 {[%emt 0:02:18]} 32. Rcc1 {[%emt 0:07:03]} Kg7 {[%emt 0:01:15]} 33. Rc3 {[%emt 0:03:45]} Kf8 {[%emt 0:00:14]} 34. Rg1 {[%emt 0:00:05]} Kg7 {[%emt 0:02:32]} 35. b4 {[%emt 0:02:51]} (35. Rcc1 {looks sharper.} Kf6 36. Rb1 Kg7 37. Rgc1) 35... Kf8 {[%emt 0:01:02]} 36. Nb3 {[%emt 0:00:22]} Bd7 {[%emt 0:00:52]} 37. a4 {[%emt 0:00:23]} a6 {[%emt 0:00:42]} 38. Rb1 {[%emt 0:01:07]} Be8 {[%emt 0:01:46]} 39. Rc2 {[%emt 0:02:48]} Kg7 {[%emt 0:01:05]} 40. Ra1 {[%emt 0:00:00]} Kf8 {[%emt 0:00:00]} 41. Rg1 {[%emt 0:06:52]} Bd7 {[%emt 0:07:34]} 42. Nc5 {[%emt 0:01:03]} Be8 {[%emt 0:00:05]} 43. Rb2 {[%emt 0:06:53]} Rd8 {[%emt 0:00:28]} 44. Re1 {[%emt 0:12:19]} Kg7 {[%emt 0:03:20]} 45. Rbe2 {[%emt 0:01:38]} Kf8 {[%emt 0:00:33]} 46. Rg1 {[%emt 0:01:36]} Ra8 {[%emt 0:00:50]} 47. Nh3 {[%emt 0:00:59][%cal Bf4h3,Bh3f2,Bf2d1,Bd1c3][%mdl 32] Pair of Knights!} Bf6 {[%emt 0:00:41]} 48. a5 {[%emt 0:01:33]} Bd7 {[%emt 0:01:39]} 49. Ke1 {[%emt 0:05:43]} Rae8 {[%emt 0:01:08]} 50. Kd2 {[%emt 0:04:31]} Bc8 {[%emt 0:00:21]} 51. Nf2 {[%emt 0:01:03]} Kg7 {[%emt 0:04:30]} 52. Nd1 {[%emt 0:00:36]} Kh8 {[%emt 0:00:14]} 53. Nc3 {[%emt 0:01:17]} Rg8 {[%emt 0:00:43]} 54. Reg2 {[%emt 0:03:14]} Rge8 {[%emt 0:01:20]} 55. Nd1 {[%emt 0:01:03]} Rg8 {[%emt 0:00:24]} 56. f4 {[%emt 0:00:41]} Rge8 {[%emt 0:02:51]} 57. Re2 {[%emt 0:01:32]} Rg8 {[%emt 0:00:11]} 58. Reg2 {[%emt 0:00:06]} Rge8 {[%emt 0:00:05]} 59. Re2 {[%emt 0:01:58] Weighted Error Value: White=0.08 (flawless) /Black=0.08 (flawless)} 1/2-1/2

[Event "Croatian 1A League 2022"]
[Site "Porec"]
[Date "2022.09.27"]
[Round "4.3"]
[White "Balogh, Csaba"]
[Black "Lalic, Bogdan"]
[Result "1/2-1/2"]
[ECO "C77"]
[WhiteElo "2583"]
[BlackElo "2393"]
[Annotator "TA"]
[PlyCount "73"]
[EventDate "2022.09.24"]
[EventType "team-tourn"]
[EventCountry "CRO"]
[SourceTitle "playchess.com"]
[Source "ChessBase"]
[SourceQuality "1"]
[TimeControl "40/5400+30:1800+30"]

{[%evp 13,73,19,13,12,16,13,28,24,27,19,33,9,49,8,17,12,10,22,13,12,22,8,16,-9,25,13,14,0,12,14,29,8,12,18,20,19,12,0,27,28,22,0,16,10,6,0,0,0,0,0,-7,-17,-16,-27,-16,-33,-27,-39,-38,-27,-27,-22]} 1. e4 {[%emt 0:00:24]} e5 {[%emt 0:00:07]} 2. Nf3 {[%emt 0:00:23]} Nc6 {[%emt 0:00:07]} 3. Bb5 {[%emt 0:01:12][%cal Bf1b5,Bb5a4,Ba4b3][%mdl 32]} a6 {[%emt 0:00:10]} 4. Ba4 {[%emt 0:00:06]} Nf6 {[%emt 0:00:09]} 5. d3 {[%emt 0:09:25]} b5 {[%emt 0:02:13]} 6. Bb3 {[%emt 0:00:11]} Bc5 {[%emt 0:00:31]} 7. c3 {[%emt 0:05:53]} d6 {[%emt 0:01:33]} 8. Bg5 {[%emt 0:03:34][%cal Bc1g5,Bg5h4,Bh4g3][%mdl 32] now supersedes 8.0-0. C77: Ruy Lopez: 3...a6 4 Ba4 Nf6, unusual lines.} h6 {[%emt 0:05:08]} 9. Bh4 {[%emt 0:00:11]} O-O {[%emt 0:09:31]} 10. O-O {[%emt 0:02:44] White has an edge.} Bb6 {[%emt 0:02:23]} 11. a4 {[%emt 0:02:42]} Rb8 {[%emt 0:01:54]} 12. Na3 {[%emt 0:10:47]} g5 {[%emt 0:01:30]} 13. Bg3 {[%emt 0:00:25]} (13. Nxg5 $5 hxg5 14. Bxg5 $15) 13... b4 {[%emt 0:09:25]} 14. Nc4 {[%emt 0:00:28]} bxc3 {[%emt 0:00:05]} 15. bxc3 {[%emt 0:00:17]} Na5 {[%emt 0:00:05]} 16. Nxa5 {[%emt 0:05:04]} Bxa5 {[%emt 0:00:16]} 17. Qc2 {[%emt 0:00:08] [#]} Nh5 $146 {[%emt 0:03:48]} ({Predecessor:} 17... c6 18. d4 Nxe4 19. Bxf7+ Rxf7 20. Qxe4 Bxc3 21. Rad1 Rb4 22. Qxc6 exd4 23. Qa8 Kg7 24. Bxd6 Qxd6 25. Qxc8 {1-0 (42) Kovalev,A (2548)-Swinkels,R (2379) Eupen 2006}) 18. Nd2 {[%emt 0:12:22]} c6 {[%emt 0:01:03]} (18... Bb6 {keeps more tension.} 19. Bd5 Qf6 20. Nc4 Bc5) 19. Nc4 {[%emt 0:01:35]} Bc7 {[%emt 0:00:08]} 20. Ba2 {[%emt 0:06:55]} Qe7 {[%emt 0:02:40]} 21. d4 {[%emt 0:04:16]} Kg7 {[%emt 0:02:46]} 22. Rad1 {[%emt 0:05:02]} f5 {[%emt 0:13:08] [#] White must now prevent ...f4.} 23. exf5 {[%emt 0:09:06]} Bxf5 {[%emt 0:00:06]} 24. Qd2 {[%emt 0:00:39]} Nf4 {[%emt 0:08:26]} 25. dxe5 {[%emt 0:05:23]} dxe5 {[%emt 0:00:04]} (25... d5 $5 {[%cal Rd5c4]} 26. Bxf4 gxf4 $15) 26. Ne3 {[%emt 0:04:08]} Be6 {[%emt 0:02:23]} 27. Bb1 {[%emt 0:01:41]} Kh8 {[%emt 0:02:39]} 28. Kh1 {[%emt 0:05:27]} Bb3 {[%emt 0:08:21][%csl LRa4,LRd1]} 29. Qd7 {[%emt 0:01:21]} Qxd7 {[%emt 0:02:47]} 30. Rxd7 {[%emt 0:00:02]} Rf7 {[%emt 0:00:05]} 31. Rxf7 {[%emt 0:01:12]} Bxf7 {[%emt 0:00:07]} 32. Be4 {[%emt 0:00:08]} Rb3 {[%emt 0:05:07]} 33. c4 {[%emt 0:01:35]} Rc3 {[%emt 0:05:51]} 34. Bxc6 {[%emt 0:00:35]} Bxc4 {[%emt 0:00:06]} 35. Nxc4 {[%emt 0:00:51]} Rxc4 {[%emt 0:00:07]} 36. Bd7 {[%emt 0:00:22]} Ne2 {[%emt 0:01:16]} 37. Re1 {[%emt 0:01:31] Weighted Error Value: White=0.09 (flawless) /Black=0.06 (flawless)} 1/2-1/2

[Event "Croatian 1A League 2022"]
[Site "Porec"]
[Date "2022.09.27"]
[Round "4.4"]
[White "Zaja, Ivan"]
[Black "Kuljasevic, Davorin"]
[Result "1/2-1/2"]
[ECO "E53"]
[WhiteElo "2417"]
[BlackElo "2560"]
[Annotator "TA"]
[PlyCount "40"]
[EventDate "2022.09.24"]
[EventType "team-tourn"]
[EventCountry "CRO"]
[SourceTitle "playchess.com"]
[Source "ChessBase"]
[SourceQuality "1"]
[TimeControl "40/5400+30:1800+30"]

{[%evp 23,40,-9,0,-15,0,0,0,-13,0,-16,8,0,15,13,21,-18,-24,-27,0]} 1. d4 {[%emt 0:00:10]} Nf6 {[%emt 0:00:09]} 2. c4 {[%emt 0:00:37]} e6 {[%emt 0:00:05]} 3. Nc3 {[%emt 0:00:10]} Bb4 {[%emt 0:00:09]} 4. e3 {[%emt 0:01:05]} O-O {[%emt 0:00:13]} 5. Bd3 {[%emt 0:00:32]} d5 {[%emt 0:00:23]} 6. Nf3 {[%emt 0:00:41]} b6 {[%emt 0:02:07]} 7. a3 {[%emt 0:02:27]} Bxc3+ {[%emt 0:01:39]} 8. bxc3 {[%emt 0:00:05]} Ba6 {[%emt 0:02:11]} 9. cxd5 {[%emt 0:08:19]} exd5 {[%emt 0:02:50]} 10. Bxa6 {[%emt 0:04:45]} Nxa6 {[%emt 0:00:02]} 11. Qd3 {[%emt 0:00:08]} Qc8 {[%emt 0:02:05]} 12. O-O {[%emt 0:05:59] was the old line (12.c4).} c5 {[%emt 0:01:20]} 13. a4 {[%emt 0:02:46] E53: Nimzo-Indian: Rubinstein: Main Line (4...0-0 5 Nf3 d5 6 Bd3 c5 7 0-0).} Qb7 {[%emt 0:06:24] [#]} 14. Ba3 $146 {[%emt 0:05:48]} ({Predecessor:} 14. Bb2 Rac8 15. c4 cxd4 16. cxd5 Nc5 17. Qf5 Qxd5 18. Nxd4 Rfd8 19. Qh3 Nce4 20. f3 Nd2 {½-½ (44) Gofshtein,L (2521)-Fleck,J (2429) Germany 2006}) 14... Rac8 {[%emt 0:09:14]} 15. Rac1 {[%emt 0:05:47] The position is equal.} Rfd8 {[%emt 0:05:49]} 16. Ne5 {[%emt 0:11:20]} Nb8 {[%emt 0:05:39][%cal Ba6b8,Bb8d7,Bd7c5][%mdl 32]} 17. dxc5 {[%emt 0:04:52]} Qe7 {[%emt 0:10:15]} 18. Nf3 {[%emt 0:01:25]} Nbd7 {[%emt 0:01:12]} 19. c4 {[%emt 0:08:20] [#] Threatens to win with cxb6.} (19. a5 $5) 19... Nxc5 {[%emt 0:02:48]} 20. Qb1 {[%emt 0:00:22]} dxc4 {[%emt 0:08:09] A balanced but interesting game.  Weighted Error Value: White=0.11 (very precise) /Black=0.06 (flawless)} 1/2-1/2